[Event "Titled Tuesday Blitz January 18 2022"]
[White "Onyshchuk, Volodymyr"]
[Black "Macovei, Andrei"]
[WhiteFideId "14114038"]
[BlackFideId "13904680"]
[WhiteElo "2642"]
[BlackElo "2410"]
[Result "0-1"]
[Round "06"]
[TimeControl "180+1"]
[Date "2022.01.18"]
[WhiteClock "0:00:05"]
[BlackClock "0:01:02"]

1. g3 {[%clk 0:03:00]}  Nf6 {[%clk 0:02:59]} 2. Bg2 {[%clk 0:03:01]}  g6 {[%clk 0:02:58]} 3. d3 {[%clk 0:02:58]}  Bg7 {[%clk 0:02:57]} 4. Nd2 {[%clk 0:02:59]}  O-O {[%clk 0:02:57]} 5. e3 {[%clk 0:02:58]}  c5 {[%clk 0:02:57]} 6. Ne2 {[%clk 0:02:58]}  Nc6 {[%clk 0:02:58]} 7. O-O {[%clk 0:02:59]}  b6 {[%clk 0:02:53]} 8. h3 {[%clk 0:02:59]}  Bb7 {[%clk 0:02:54]} 9. b3 {[%clk 0:02:56]}  Re8 {[%clk 0:02:45]} 10. Bb2 {[%clk 0:02:55]}  e5 {[%clk 0:02:45]} 11. a3 {[%clk 0:02:54]}  d5 {[%clk 0:02:45]} 12. Qb1 {[%clk 0:02:53]}  h5 {[%clk 0:02:41]} 13. Qa2 {[%clk 0:02:53]}  h4 {[%clk 0:02:40]} 14. g4 {[%clk 0:02:52]}  d4 {[%clk 0:02:39]} 15. Rae1 {[%clk 0:02:37]}  Bh6 {[%clk 0:02:38]} 16. Kh1 {[%clk 0:02:12]}  Nd5 {[%clk 0:01:55]} 17. b4 {[%clk 0:01:45]}  Nce7 {[%clk 0:01:55]} 18. Nc4 {[%clk 0:01:41]}  Qc7 {[%clk 0:01:55]} 19. Bc1 {[%clk 0:01:34]}  cxb4 {[%clk 0:01:41]} 20. e4 {[%clk 0:01:34]}  Bxc1 {[%clk 0:01:41]} 21. exd5 {[%clk 0:01:34]}  Bg5 {[%clk 0:01:33]} 22. d6 {[%clk 0:01:03]}  Bxg2+ {[%clk 0:01:32]} 23. Kxg2 {[%clk 0:01:04]}  Qc6+ {[%clk 0:01:29]} 24. Kg1 {[%clk 0:01:04]}  Nd5 {[%clk 0:01:29]} 25. axb4 {[%clk 0:00:51]}  b5 {[%clk 0:01:27]} 26. Nxe5 {[%clk 0:00:36]}  Rxe5 {[%clk 0:01:25]} 27. Nxd4 {[%clk 0:00:36]}  Qxd6 {[%clk 0:01:24]} 28. Nxb5 {[%clk 0:00:35]}  Qe7 {[%clk 0:01:16]} 29. Qa1 {[%clk 0:00:18]}  Bf6 {[%clk 0:01:11]} 30. Rxe5 {[%clk 0:00:14]}  Bxe5 {[%clk 0:01:12]} 31. d4 {[%clk 0:00:14]}  Bb8 {[%clk 0:01:09]} 32. Re1 {[%clk 0:00:10]}  Qb7 {[%clk 0:01:07]} 33. c4 {[%clk 0:00:05]}  a6 {[%clk 0:01:02]} 0-1


[Site "https://www.chess.com"]

[Event "Titled Tuesday Blitz January 18 2022"]
[White "Papasimakopoulos, Alexandros"]
[Black "Perez Ponsa, Federico"]
[WhiteFideId "4244125"]
[BlackFideId "117927"]
[WhiteElo "2340"]
[BlackElo "2672"]
[Result "0-1"]
[Round "06"]
[TimeControl "180+1"]
[Date "2022.01.18"]
[WhiteClock "0:00:26"]
[BlackClock "0:02:02"]

1. d4 {[%clk 0:02:18]}  Nf6 {[%clk 0:02:54]} 2. c4 {[%clk 0:02:18]}  e6 {[%clk 0:02:54]} 3. Nc3 {[%clk 0:02:19]}  Bb4 {[%clk 0:02:54]} 4. Qc2 {[%clk 0:02:20]}  O-O {[%clk 0:02:53]} 5. a3 {[%clk 0:02:20]}  Bxc3+ {[%clk 0:02:51]} 6. Qxc3 {[%clk 0:02:21]}  h6 {[%clk 0:02:52]} 7. f3 {[%clk 0:02:19]}  d5 {[%clk 0:02:51]} 8. c5 {[%clk 0:02:12]}  Nc6 {[%clk 0:02:42]} 9. b4 {[%clk 0:02:10]}  e5 {[%clk 0:02:42]} 10. e3 {[%clk 0:02:07]}  Re8 {[%clk 0:02:41]} 11. Kf2 {[%clk 0:02:00]}  exd4 {[%clk 0:02:38]} 12. exd4 {[%clk 0:02:00]}  Nh5 {[%clk 0:02:37]} 13. Ne2 {[%clk 0:01:48]}  a6 {[%clk 0:02:30]} 14. g4 {[%clk 0:01:06]}  Qh4+ {[%clk 0:02:27]} 15. Kg1 {[%clk 0:01:02]}  Bxg4 {[%clk 0:02:25]} 16. fxg4 {[%clk 0:00:58]}  Qxg4+ {[%clk 0:02:25]} 17. Ng3 {[%clk 0:00:58]}  Nxd4 {[%clk 0:02:26]} 18. Be3 {[%clk 0:00:37]}  Nxg3 {[%clk 0:02:04]} 19. hxg3 {[%clk 0:00:26]}  Qxg3+ {[%clk 0:02:03]} 20. Bg2 {[%clk 0:00:26]}  Ne2+ {[%clk 0:02:02]} 0-1


[Site "https://www.chess.com"]

[Event "Titled Tuesday Blitz January 18 2022"]
[White "Pinto, Daniel"]
[Black "Cherniaiev, Tykhon"]
[WhiteFideId "3303144"]
[BlackFideId "14182360"]
[WhiteElo "1938"]
[BlackElo "2289"]
[Result "0-1"]
[Round "06"]
[TimeControl "180+1"]
[Date "2022.01.18"]
[WhiteClock "0:00:01"]
[BlackClock "0:00:43"]

1. e4 {[%clk 0:03:00]}  c5 {[%clk 0:02:59]} 2. Nf3 {[%clk 0:02:55]}  e6 {[%clk 0:02:59]} 3. c3 {[%clk 0:02:54]}  d5 {[%clk 0:02:58]} 4. e5 {[%clk 0:02:53]}  d4 {[%clk 0:02:59]} 5. cxd4 {[%clk 0:02:52]}  cxd4 {[%clk 0:03:00]} 6. Bd3 {[%clk 0:02:53]}  Nc6 {[%clk 0:02:59]} 7. O-O {[%clk 0:02:52]}  Nge7 {[%clk 0:02:59]} 8. Re1 {[%clk 0:02:51]}  Ng6 {[%clk 0:02:59]} 9. a3 {[%clk 0:02:52]}  Qc7 {[%clk 0:02:59]} 10. Bxg6 {[%clk 0:02:45]}  hxg6 {[%clk 0:02:59]} 11. b4 {[%clk 0:02:45]}  a6 {[%clk 0:02:59]} 12. d3 {[%clk 0:02:44]}  Bd7 {[%clk 0:02:57]} 13. Nbd2 {[%clk 0:02:45]}  g5 {[%clk 0:02:48]} 14. Bb2 {[%clk 0:02:42]}  g4 {[%clk 0:02:47]} 15. Nxd4 {[%clk 0:02:42]}  Nxe5 {[%clk 0:02:46]} 16. Nxe6 {[%clk 0:02:29]}  Bxe6 {[%clk 0:02:40]} 17. Bxe5 {[%clk 0:02:28]}  Bd6 {[%clk 0:02:40]} 18. Rc1 {[%clk 0:02:25]}  Qd7 {[%clk 0:02:32]} 19. Nc4 {[%clk 0:02:06]}  Bxe5 {[%clk 0:02:28]} 20. Nxe5 {[%clk 0:02:02]}  Qd6 {[%clk 0:02:21]} 21. Nxg4 {[%clk 0:01:46]}  O-O {[%clk 0:02:17]} 22. Ne5 {[%clk 0:01:21]}  Rad8 {[%clk 0:02:16]} 23. Qf3 {[%clk 0:01:18]}  Bd5 {[%clk 0:02:12]} 24. Qg3 {[%clk 0:01:18]}  Rfe8 {[%clk 0:02:11]} 25. h4 {[%clk 0:01:14]}  Re6 {[%clk 0:01:57]} 26. Nc4 {[%clk 0:00:47]}  Qe7 {[%clk 0:01:34]} 27. Rxe6 {[%clk 0:00:42]}  Qxe6 {[%clk 0:01:35]} 28. Ne3 {[%clk 0:00:41]}  Bc6 {[%clk 0:01:34]} 29. Rc3 {[%clk 0:00:34]}  Qf6 {[%clk 0:01:30]} 30. Qg5 {[%clk 0:00:27]}  Qxc3 {[%clk 0:01:21]} 31. Qxd8+ {[%clk 0:00:27]}  Kh7 {[%clk 0:01:21]} 32. Kh2 {[%clk 0:00:12]}  Qe5+ {[%clk 0:00:45]} 33. g3 {[%clk 0:00:12]}  Qa1 {[%clk 0:00:44]} 34. Ng2 {[%clk 0:00:01]}  Qf1 {[%clk 0:00:43]} 0-1


[Site "https://www.chess.com"]

[Event "Titled Tuesday Blitz January 18 2022"]
[White "Piorun, Kacper"]
[Black "Wagner, Dennis"]
[WhiteFideId "1130420"]
[BlackFideId "24650684"]
[WhiteElo "2969"]
[BlackElo "2731"]
[Result "1-0"]
[Round "06"]
[TimeControl "180+1"]
[Date "2022.01.18"]
[WhiteClock "0:00:09"]
[BlackClock "0:00:14"]

1. d4 {[%clk 0:03:00]}  Nf6 {[%clk 0:02:59]} 2. Bg5 {[%clk 0:03:01]}  d5 {[%clk 0:02:57]} 3. Nd2 {[%clk 0:03:00]}  c5 {[%clk 0:02:56]} 4. e3 {[%clk 0:03:00]}  cxd4 {[%clk 0:02:54]} 5. exd4 {[%clk 0:03:00]}  Nc6 {[%clk 0:02:54]} 6. Ngf3 {[%clk 0:02:59]}  h6 {[%clk 0:02:54]} 7. Bxf6 {[%clk 0:02:57]}  gxf6 {[%clk 0:02:54]} 8. c4 {[%clk 0:02:47]}  e5 {[%clk 0:02:46]} 9. cxd5 {[%clk 0:02:40]}  Qxd5 {[%clk 0:02:35]} 10. Bc4 {[%clk 0:02:38]}  Qa5 {[%clk 0:02:35]} 11. O-O {[%clk 0:02:36]}  Bb4 {[%clk 0:02:25]} 12. Ne4 {[%clk 0:02:32]}  Qd8 {[%clk 0:02:10]} 13. d5 {[%clk 0:02:24]}  f5 {[%clk 0:01:49]} 14. Ng3 {[%clk 0:02:07]}  f4 {[%clk 0:01:49]} 15. dxc6 {[%clk 0:01:38]}  fxg3 {[%clk 0:01:47]} 16. Qa4 {[%clk 0:01:35]}  gxf2+ {[%clk 0:01:36]} 17. Kh1 {[%clk 0:01:33]}  b5 {[%clk 0:01:25]} 18. Bxb5 {[%clk 0:01:26]}  Qa5 {[%clk 0:01:17]} 19. c7+ {[%clk 0:01:07]}  Ke7 {[%clk 0:01:14]} 20. Qxa5 {[%clk 0:00:49]}  Bxa5 {[%clk 0:01:13]} 21. Bc6 {[%clk 0:00:50]}  Ba6 {[%clk 0:01:05]} 22. Rxf2 {[%clk 0:00:41]}  Bxc7 {[%clk 0:00:51]} 23. Bxa8 {[%clk 0:00:38]}  Rxa8 {[%clk 0:00:51]} 24. Rc1 {[%clk 0:00:36]}  Bd6 {[%clk 0:00:51]} 25. Rd2 {[%clk 0:00:30]}  e4 {[%clk 0:00:47]} 26. Rc6 {[%clk 0:00:27]}  Bf4 {[%clk 0:00:31]} 27. Rxa6 {[%clk 0:00:16]}  exf3 {[%clk 0:00:31]} 28. Rf2 {[%clk 0:00:14]}  fxg2+ {[%clk 0:00:31]} 29. Kxg2 {[%clk 0:00:14]}  Bg5 {[%clk 0:00:23]} 30. Re2+ {[%clk 0:00:13]}  Kd7 {[%clk 0:00:23]} 31. Ra3 {[%clk 0:00:12]}  f5 {[%clk 0:00:17]} 32. Rd3+ {[%clk 0:00:12]}  Kc6 {[%clk 0:00:17]} 33. Rc2+ {[%clk 0:00:12]}  Kb5 {[%clk 0:00:17]} 34. Rb3+ {[%clk 0:00:13]}  Ka4 {[%clk 0:00:17]} 35. Rc4+ {[%clk 0:00:13]}  Ka5 {[%clk 0:00:18]} 36. Rc5+ {[%clk 0:00:12]}  Ka4 {[%clk 0:00:18]} 37. Rxf5 {[%clk 0:00:12]}  Rd8 {[%clk 0:00:18]} 38. Rf7 {[%clk 0:00:11]}  Rd2+ {[%clk 0:00:18]} 39. Kf3 {[%clk 0:00:11]}  a6 {[%clk 0:00:18]} 40. h4 {[%clk 0:00:10]}  Bd8 {[%clk 0:00:15]} 41. Rf4+ {[%clk 0:00:09]}  Ka5 {[%clk 0:00:15]} 42. Rf5+ {[%clk 0:00:10]}  Ka4 {[%clk 0:00:16]} 43. Rf4+ {[%clk 0:00:07]}  Ka5 {[%clk 0:00:15]} 44. a3 {[%clk 0:00:08]}  Rh2 {[%clk 0:00:14]} 45. Rf5+ {[%clk 0:00:08]}  Ka4 {[%clk 0:00:14]} 46. Rb4# {[%clk 0:00:09]} 1-0


[Site "https://www.chess.com"]

[Event "Titled Tuesday Blitz January 18 2022"]
[White "Plotkin, Mark"]
[Black "Sargsyan, Anna M."]
[WhiteFideId "2611651"]
[BlackFideId "13308130"]
[WhiteElo "2178"]
[BlackElo "2271"]
[Result "1-0"]
[Round "06"]
[TimeControl "180+1"]
[Date "2022.01.18"]
[WhiteClock "0:00:46"]
[BlackClock "0:00:18"]

1. e4 {[%clk 0:03:00]}  c6 {[%clk 0:03:00]} 2. c4 {[%clk 0:03:00]}  d5 {[%clk 0:03:01]} 3. cxd5 {[%clk 0:03:01]}  cxd5 {[%clk 0:03:02]} 4. exd5 {[%clk 0:03:02]}  Nf6 {[%clk 0:03:02]} 5. Bc4 {[%clk 0:03:02]}  Nbd7 {[%clk 0:02:58]} 6. d3 {[%clk 0:02:58]}  Nb6 {[%clk 0:02:58]} 7. Qb3 {[%clk 0:02:58]}  g6 {[%clk 0:02:46]} 8. Nc3 {[%clk 0:02:58]}  Bg7 {[%clk 0:02:46]} 9. Nf3 {[%clk 0:02:58]}  O-O {[%clk 0:02:47]} 10. O-O {[%clk 0:02:58]}  Bf5 {[%clk 0:02:42]} 11. Be3 {[%clk 0:02:57]}  Rc8 {[%clk 0:02:40]} 12. Bxb6 {[%clk 0:02:50]}  axb6 {[%clk 0:02:40]} 13. Rfe1 {[%clk 0:02:49]}  Nd7 {[%clk 0:02:33]} 14. d4 {[%clk 0:02:45]}  Bg4 {[%clk 0:02:28]} 15. Ne5 {[%clk 0:02:44]}  Bf5 {[%clk 0:02:26]} 16. Rad1 {[%clk 0:02:41]}  Qc7 {[%clk 0:02:22]} 17. d6 {[%clk 0:02:40]}  exd6 {[%clk 0:02:18]} 18. Bxf7+ {[%clk 0:02:37]}  Kh8 {[%clk 0:02:18]} 19. Nd5 {[%clk 0:02:36]}  Qc2 {[%clk 0:01:52]} 20. Nxd7 {[%clk 0:01:55]}  Rxf7 {[%clk 0:01:13]} 21. N7xb6 {[%clk 0:01:44]}  Qxb3 {[%clk 0:01:06]} 22. axb3 {[%clk 0:01:43]}  Rc2 {[%clk 0:01:02]} 23. Nc4 {[%clk 0:01:15]}  Bf8 {[%clk 0:00:53]} 24. Nde3 {[%clk 0:01:11]}  b5 {[%clk 0:00:42]} 25. Nxc2 {[%clk 0:01:02]}  Bxc2 {[%clk 0:00:43]} 26. Rc1 {[%clk 0:01:02]}  Bxb3 {[%clk 0:00:40]} 27. Ne3 {[%clk 0:00:56]}  h5 {[%clk 0:00:37]} 28. Rc3 {[%clk 0:00:55]}  Be6 {[%clk 0:00:35]} 29. d5 {[%clk 0:00:55]}  Bd7 {[%clk 0:00:31]} 30. Rc7 {[%clk 0:00:51]}  Bg7 {[%clk 0:00:30]} 31. Ra1 {[%clk 0:00:51]}  Be8 {[%clk 0:00:23]} 32. Rc8 {[%clk 0:00:50]}  Re7 {[%clk 0:00:17]} 33. Raa8 {[%clk 0:00:50]}  Kh7 {[%clk 0:00:18]} 34. Rxe8 {[%clk 0:00:50]}  Rc7 {[%clk 0:00:18]} 35. Rec8 {[%clk 0:00:47]}  Re7 {[%clk 0:00:18]} 36. b3 {[%clk 0:00:46]} 1-0


[Site "https://www.chess.com"]

[Event "Titled Tuesday Blitz January 18 2022"]
[White "Prohorov, Olexandr"]
[Black "Andreikin, Dmitry"]
[WhiteFideId "14105578"]
[BlackFideId "4158814"]
[WhiteElo "1993"]
[BlackElo "2736"]
[Result "0-1"]
[Round "06"]
[TimeControl "180+1"]
[Date "2022.01.18"]
[WhiteClock "0:00:04"]
[BlackClock "0:00:31"]

1. e4 {[%clk 0:03:00]}  c5 {[%clk 0:03:00]} 2. c3 {[%clk 0:02:59]}  Nf6 {[%clk 0:02:58]} 3. e5 {[%clk 0:02:56]}  Nd5 {[%clk 0:02:57]} 4. g3 {[%clk 0:02:56]}  Nc6 {[%clk 0:02:55]} 5. Bg2 {[%clk 0:02:55]}  e6 {[%clk 0:02:54]} 6. Nf3 {[%clk 0:02:55]}  g5 {[%clk 0:02:47]} 7. d4 {[%clk 0:02:46]}  g4 {[%clk 0:02:42]} 8. Ng1 {[%clk 0:02:38]}  cxd4 {[%clk 0:02:41]} 9. cxd4 {[%clk 0:02:37]}  Qa5+ {[%clk 0:02:19]} 10. Kf1 {[%clk 0:02:28]}  b6 {[%clk 0:02:11]} 11. Bd2 {[%clk 0:02:19]}  Ba6+ {[%clk 0:01:52]} 12. Ke1 {[%clk 0:02:13]}  Ndb4 {[%clk 0:01:21]} 13. Bf1 {[%clk 0:01:57]}  Qd5 {[%clk 0:01:16]} 14. f3 {[%clk 0:01:15]}  Nxd4 {[%clk 0:01:13]} 15. Bxa6 {[%clk 0:01:11]}  Nxa6 {[%clk 0:01:09]} 16. Nc3 {[%clk 0:01:10]}  Qxe5+ {[%clk 0:01:09]} 17. Kf2 {[%clk 0:01:10]}  Nb4 {[%clk 0:01:01]} 18. Be3 {[%clk 0:01:04]}  Bc5 {[%clk 0:00:58]} 19. Ne4 {[%clk 0:00:51]}  Nbc2 {[%clk 0:00:54]} 20. Rc1 {[%clk 0:00:18]}  Nxe3 {[%clk 0:00:51]} 21. Kxe3 {[%clk 0:00:11]}  Nxf3+ {[%clk 0:00:43]} 22. Rxc5 {[%clk 0:00:08]}  bxc5 {[%clk 0:00:43]} 23. Nxf3 {[%clk 0:00:07]}  gxf3 {[%clk 0:00:44]} 24. Kxf3 {[%clk 0:00:08]}  d5 {[%clk 0:00:40]} 25. Nxc5 {[%clk 0:00:08]}  O-O {[%clk 0:00:37]} 26. Qd3 {[%clk 0:00:07]}  Qxb2 {[%clk 0:00:35]} 27. Re1 {[%clk 0:00:06]}  Rac8 {[%clk 0:00:32]} 28. Kg4 {[%clk 0:00:04]}  Rxc5 {[%clk 0:00:31]} 0-1


[Site "https://www.chess.com"]

[Event "Titled Tuesday Blitz January 18 2022"]
[White "Prraneeth Vuppala"]
[Black "Iljushina, Olga"]
[WhiteFideId "46622373"]
[BlackFideId "4152280"]
[WhiteElo "1759"]
[BlackElo "1937"]
[Result "0-1"]
[Round "06"]
[TimeControl "180+1"]
[Date "2022.01.18"]
[WhiteClock "0:00:09"]
[BlackClock "0:00:40"]

1. e4 {[%clk 0:03:00]}  c5 {[%clk 0:02:58]} 2. Nf3 {[%clk 0:03:00]}  Nc6 {[%clk 0:02:58]} 3. d4 {[%clk 0:03:00]}  cxd4 {[%clk 0:02:58]} 4. Nxd4 {[%clk 0:03:01]}  Nf6 {[%clk 0:02:57]} 5. Nc3 {[%clk 0:03:02]}  d6 {[%clk 0:02:57]} 6. Bg5 {[%clk 0:03:01]}  Qb6 {[%clk 0:02:56]} 7. Ndb5 {[%clk 0:02:35]}  a6 {[%clk 0:02:53]} 8. Bxf6 {[%clk 0:02:27]}  gxf6 {[%clk 0:02:51]} 9. Nd5 {[%clk 0:02:27]}  Qa5+ {[%clk 0:02:47]} 10. b4 {[%clk 0:02:19]}  Nxb4 {[%clk 0:02:44]} 11. Nbc7+ {[%clk 0:01:20]}  Kd8 {[%clk 0:02:41]} 12. Nxa8 {[%clk 0:00:45]}  Nxd5+ {[%clk 0:02:28]} 13. Qd2 {[%clk 0:00:45]}  Nb4 {[%clk 0:02:18]} 14. c3 {[%clk 0:00:40]}  Nc6 {[%clk 0:02:14]} 15. Rb1 {[%clk 0:00:30]}  h5 {[%clk 0:02:10]} 16. Nb6 {[%clk 0:00:28]}  Bh6 {[%clk 0:02:08]} 17. Qc2 {[%clk 0:00:24]}  Nd4 {[%clk 0:01:41]} 18. Qd3 {[%clk 0:00:19]}  Nb5 {[%clk 0:01:37]} 19. a4 {[%clk 0:00:14]}  Nxc3 {[%clk 0:01:35]} 20. Nc4 {[%clk 0:00:14]}  Qc5 {[%clk 0:01:07]} 21. Qxc3 {[%clk 0:00:14]}  b5 {[%clk 0:01:07]} 22. axb5 {[%clk 0:00:14]}  axb5 {[%clk 0:01:07]} 23. Qa5+ {[%clk 0:00:14]}  Ke8 {[%clk 0:01:03]} 24. Qxb5+ {[%clk 0:00:14]}  Qxb5 {[%clk 0:01:01]} 25. Rxb5 {[%clk 0:00:15]}  Kf8 {[%clk 0:00:55]} 26. Be2 {[%clk 0:00:15]}  Kg7 {[%clk 0:00:52]} 27. O-O {[%clk 0:00:14]}  Ba6 {[%clk 0:00:51]} 28. Ra5 {[%clk 0:00:14]}  Bc8 {[%clk 0:00:48]} 29. Ra8 {[%clk 0:00:11]}  h4 {[%clk 0:00:45]} 30. Nb6 {[%clk 0:00:10]}  Be6 {[%clk 0:00:44]} 31. Rxh8 {[%clk 0:00:10]}  Kxh8 {[%clk 0:00:45]} 32. Nd5 {[%clk 0:00:11]}  Bf8 {[%clk 0:00:42]} 33. Rc1 {[%clk 0:00:10]}  f5 {[%clk 0:00:42]} 34. f3 {[%clk 0:00:08]}  fxe4 {[%clk 0:00:42]} 35. fxe4 {[%clk 0:00:09]}  f5 {[%clk 0:00:42]} 36. Rc8 {[%clk 0:00:09]}  Kg7 {[%clk 0:00:40]} 0-1


[Site "https://www.chess.com"]

[Event "Titled Tuesday Blitz January 18 2022"]
[White "Raja Rithvik R"]
[Black "Zhuravlev, Alexey"]
[WhiteFideId "35007394"]
[BlackFideId "4164199"]
[WhiteElo "2255"]
[BlackElo "2522"]
[Result "0-1"]
[Round "06"]
[TimeControl "180+1"]
[Date "2022.01.18"]
[WhiteClock "0:00:01"]
[BlackClock "0:00:16"]

1. Nf3 {[%clk 0:03:00]}  Nf6 {[%clk 0:02:59]} 2. c4 {[%clk 0:03:00]}  g6 {[%clk 0:02:59]} 3. g3 {[%clk 0:02:59]}  Bg7 {[%clk 0:02:57]} 4. Bg2 {[%clk 0:02:59]}  O-O {[%clk 0:02:57]} 5. O-O {[%clk 0:03:00]}  d6 {[%clk 0:02:57]} 6. d4 {[%clk 0:03:01]}  Nc6 {[%clk 0:02:57]} 7. Nc3 {[%clk 0:03:01]}  a6 {[%clk 0:02:57]} 8. Qd3 {[%clk 0:03:00]}  e5 {[%clk 0:02:45]} 9. dxe5 {[%clk 0:03:01]}  dxe5 {[%clk 0:02:12]} 10. Qxd8 {[%clk 0:03:02]}  Rxd8 {[%clk 0:02:12]} 11. Bg5 {[%clk 0:03:03]}  Re8 {[%clk 0:02:12]} 12. Rfd1 {[%clk 0:02:33]}  h6 {[%clk 0:01:31]} 13. Be3 {[%clk 0:02:31]}  Be6 {[%clk 0:01:26]} 14. b3 {[%clk 0:02:07]}  e4 {[%clk 0:01:16]} 15. Nd4 {[%clk 0:02:03]}  Ng4 {[%clk 0:01:16]} 16. Nxe4 {[%clk 0:01:39]}  Nxe3 {[%clk 0:01:03]} 17. fxe3 {[%clk 0:01:40]}  Bf5 {[%clk 0:00:34]} 18. Nc5 {[%clk 0:01:14]}  Rxe3 {[%clk 0:00:34]} 19. Nxf5 {[%clk 0:01:03]}  gxf5 {[%clk 0:00:35]} 20. Rac1 {[%clk 0:00:52]}  Nd4 {[%clk 0:00:34]} 21. Bxb7 {[%clk 0:00:42]}  Rae8 {[%clk 0:00:26]} 22. Kf1 {[%clk 0:00:21]}  Rxe2 {[%clk 0:00:23]} 23. Nxa6 {[%clk 0:00:01]}  Rxa2 {[%clk 0:00:16]} 0-1


[Site "https://www.chess.com"]

[Event "Titled Tuesday Blitz January 18 2022"]
[White "Ruiz Aguilar, Pablo Alexander"]
[Black "Baskin, Robert"]
[WhiteFideId "4401352"]
[BlackFideId "24662402"]
[WhiteElo "2125"]
[BlackElo "2488"]
[Result "1-0"]
[Round "06"]
[TimeControl "180+1"]
[Date "2022.01.18"]
[WhiteClock "0:00:06"]
[BlackClock "0:00:03"]

1. e4 {[%clk 0:03:00]}  d5 {[%clk 0:02:59]} 2. exd5 {[%clk 0:03:00]}  Qxd5 {[%clk 0:03:00]} 3. Nc3 {[%clk 0:03:00]}  Qd6 {[%clk 0:02:58]} 4. d4 {[%clk 0:03:01]}  Nf6 {[%clk 0:02:58]} 5. Nf3 {[%clk 0:03:01]}  c6 {[%clk 0:02:58]} 6. Ne5 {[%clk 0:03:00]}  Nbd7 {[%clk 0:02:58]} 7. f4 {[%clk 0:02:59]}  Nb6 {[%clk 0:02:52]} 8. Be3 {[%clk 0:02:56]}  g6 {[%clk 0:02:45]} 9. Qd2 {[%clk 0:02:55]}  Bg7 {[%clk 0:02:35]} 10. O-O-O {[%clk 0:02:55]}  Be6 {[%clk 0:02:33]} 11. h3 {[%clk 0:02:43]}  O-O-O {[%clk 0:02:17]} 12. g4 {[%clk 0:02:37]}  Nfd5 {[%clk 0:02:13]} 13. Bg2 {[%clk 0:02:37]}  Nxc3 {[%clk 0:02:04]} 14. Qxc3 {[%clk 0:02:37]}  Nd5 {[%clk 0:01:58]} 15. Bxd5 {[%clk 0:02:27]}  Bxd5 {[%clk 0:01:57]} 16. Rhe1 {[%clk 0:02:24]}  h5 {[%clk 0:01:51]} 17. g5 {[%clk 0:02:20]}  Kb8 {[%clk 0:01:33]} 18. a3 {[%clk 0:02:18]}  Bxe5 {[%clk 0:01:22]} 19. dxe5 {[%clk 0:02:18]}  Qc7 {[%clk 0:01:22]} 20. Qb4 {[%clk 0:02:15]}  b6 {[%clk 0:01:20]} 21. Bc5 {[%clk 0:02:15]}  Rd7 {[%clk 0:01:19]} 22. c4 {[%clk 0:02:12]}  Ka8 {[%clk 0:01:10]} 23. cxd5 {[%clk 0:01:28]}  cxd5 {[%clk 0:01:09]} 24. Kb1 {[%clk 0:01:15]}  bxc5 {[%clk 0:01:06]} 25. Qa4 {[%clk 0:01:15]}  e6 {[%clk 0:01:06]} 26. Rc1 {[%clk 0:01:14]}  Rb8 {[%clk 0:01:05]} 27. Rc2 {[%clk 0:01:10]}  c4 {[%clk 0:01:00]} 28. Rd1 {[%clk 0:01:05]}  Rdd8 {[%clk 0:00:45]} 29. b4 {[%clk 0:00:58]}  Qb6 {[%clk 0:00:44]} 30. Rcd2 {[%clk 0:00:48]}  d4 {[%clk 0:00:43]} 31. Rc2 {[%clk 0:00:43]}  c3 {[%clk 0:00:42]} 32. Rd3 {[%clk 0:00:43]}  a5 {[%clk 0:00:39]} 33. Ka2 {[%clk 0:00:38]}  Qb5 {[%clk 0:00:38]} 34. Qxb5 {[%clk 0:00:36]}  Rxb5 {[%clk 0:00:38]} 35. Rcxc3 {[%clk 0:00:31]}  axb4 {[%clk 0:00:37]} 36. Rb3 {[%clk 0:00:28]}  Rc5 {[%clk 0:00:24]} 37. Rxb4 {[%clk 0:00:27]}  Rxe5 {[%clk 0:00:20]} 38. fxe5 {[%clk 0:00:26]}  Rd5 {[%clk 0:00:16]} 39. Rbxd4 {[%clk 0:00:22]}  Rxe5 {[%clk 0:00:16]} 40. Rd8+ {[%clk 0:00:22]}  Kb7 {[%clk 0:00:16]} 41. R8d7+ {[%clk 0:00:22]}  Kc6 {[%clk 0:00:16]} 42. Rxf7 {[%clk 0:00:23]}  Rxg5 {[%clk 0:00:17]} 43. Rf6 {[%clk 0:00:22]}  Kc5 {[%clk 0:00:15]} 44. Rxe6 {[%clk 0:00:22]}  Kc4 {[%clk 0:00:15]} 45. Rd2 {[%clk 0:00:21]}  Rg3 {[%clk 0:00:15]} 46. h4 {[%clk 0:00:20]}  Rh3 {[%clk 0:00:14]} 47. Rc2+ {[%clk 0:00:17]}  Kb5 {[%clk 0:00:14]} 48. Rb2+ {[%clk 0:00:07]}  Kc5 {[%clk 0:00:13]} 49. Re4 {[%clk 0:00:07]}  Kd5 {[%clk 0:00:13]} 50. Ra4 {[%clk 0:00:06]}  Rg3 {[%clk 0:00:10]} 51. Rb5+ {[%clk 0:00:05]}  Kc6 {[%clk 0:00:10]} 52. Rg5 {[%clk 0:00:04]}  Rf3 {[%clk 0:00:08]} 53. Rxg6+ {[%clk 0:00:04]}  Kb5 {[%clk 0:00:08]} 54. Rb4+ {[%clk 0:00:05]}  Ka5 {[%clk 0:00:09]} 55. Rg5+ {[%clk 0:00:05]}  Ka6 {[%clk 0:00:09]} 56. Rxh5 {[%clk 0:00:06]}  Rh3 {[%clk 0:00:08]} 57. Kb2 {[%clk 0:00:05]}  Rg3 {[%clk 0:00:07]} 58. Rg5 {[%clk 0:00:06]}  Rh3 {[%clk 0:00:07]} 59. h5 {[%clk 0:00:06]}  Rh1 {[%clk 0:00:03]} 60. Kb3 {[%clk 0:00:06]}  Rh3+ {[%clk 0:00:03]} 61. Ka4 {[%clk 0:00:06]} 1-0


[Site "https://www.chess.com"]

[Event "Titled Tuesday Blitz January 18 2022"]
[White "Shkapenko, Pavel"]
[Black "Ambartsumova, Karina"]
[WhiteFideId "4151933"]
[BlackFideId "4166299"]
[WhiteElo "2386"]
[BlackElo "2262"]
[Result "1/2-1/2"]
[Round "06"]
[TimeControl "180+1"]
[Date "2022.01.18"]
[WhiteClock "0:00:06"]
[BlackClock "0:00:08"]

1. e4 {[%clk 0:02:41]}  c5 {[%clk 0:02:59]} 2. c3 {[%clk 0:02:41]}  d5 {[%clk 0:02:56]} 3. exd5 {[%clk 0:02:41]}  Qxd5 {[%clk 0:02:57]} 4. Nf3 {[%clk 0:02:41]}  Nc6 {[%clk 0:02:56]} 5. d4 {[%clk 0:02:42]}  Bf5 {[%clk 0:02:56]} 6. Be3 {[%clk 0:02:41]}  Nf6 {[%clk 0:02:55]} 7. Na3 {[%clk 0:02:38]}  e6 {[%clk 0:02:15]} 8. Qa4 {[%clk 0:02:30]}  Be7 {[%clk 0:02:07]} 9. Bc4 {[%clk 0:02:14]}  Qe4 {[%clk 0:01:52]} 10. O-O {[%clk 0:02:11]}  cxd4 {[%clk 0:01:49]} 11. Nxd4 {[%clk 0:02:03]}  O-O {[%clk 0:01:46]} 12. Nxf5 {[%clk 0:01:45]}  Qxf5 {[%clk 0:01:44]} 13. h3 {[%clk 0:01:33]}  Rfd8 {[%clk 0:01:34]} 14. Rad1 {[%clk 0:01:31]}  a6 {[%clk 0:01:15]} 15. Be2 {[%clk 0:01:29]}  b5 {[%clk 0:01:00]} 16. Qc2 {[%clk 0:01:29]}  Qe5 {[%clk 0:00:37]} 17. Bf3 {[%clk 0:01:01]}  Rac8 {[%clk 0:00:33]} 18. Rxd8+ {[%clk 0:00:51]}  Bxd8 {[%clk 0:00:32]} 19. g3 {[%clk 0:00:41]}  Nb4 {[%clk 0:00:28]} 20. Qd1 {[%clk 0:00:28]}  Nbd5 {[%clk 0:00:27]} 21. Bd4 {[%clk 0:00:28]}  Qc7 {[%clk 0:00:20]} 22. Re1 {[%clk 0:00:24]}  Be7 {[%clk 0:00:20]} 23. Nc2 {[%clk 0:00:24]}  h6 {[%clk 0:00:19]} 24. Ne3 {[%clk 0:00:24]}  Nb6 {[%clk 0:00:17]} 25. Ng4 {[%clk 0:00:23]}  Nxg4 {[%clk 0:00:17]} 26. Bxg4 {[%clk 0:00:24]}  Bd6 {[%clk 0:00:16]} 27. Qe2 {[%clk 0:00:22]}  Nc4 {[%clk 0:00:14]} 28. Rd1 {[%clk 0:00:21]}  Bc5 {[%clk 0:00:12]} 29. b3 {[%clk 0:00:14]}  Nb6 {[%clk 0:00:12]} 30. Be5 {[%clk 0:00:08]}  Qe7 {[%clk 0:00:10]} 31. Bf3 {[%clk 0:00:07]}  Nd7 {[%clk 0:00:10]} 32. Bf4 {[%clk 0:00:06]}  Nf6 {[%clk 0:00:10]} 33. Be5 {[%clk 0:00:05]}  Nd7 {[%clk 0:00:09]} 34. Bf4 {[%clk 0:00:06]}  Nf6 {[%clk 0:00:09]} 35. Be5 {[%clk 0:00:06]}  Nd7 {[%clk 0:00:08]} 1/2-1/2


[Site "https://www.chess.com"]